bitfinex/quotes_ETHUSD_20250923
["timestamp","ask_amount","ask_price","bid_price","bid_amount"]
[1758592589653,4.068,4173.2,4173.1,2.39630011]
[1758592589846,4.80398469,4173.2,4173.1,2.39630011]
[1758592590375,4.58125296,4173.2,4173.1,2.39630011]
[1758592591757,4.80399498,4173.2,4173.1,2.39630011]
[1758592591991,4.58125296,4173.2,4173.1,2.39630011]
[1758592592192,4.58125296,4173.2,4173.0,2.39634503]
[1758592592388,0.51328328,4173.1,4172.6,0.4861294]
[1758592592590,0.98532531,4173.0,4172.6,0.004]
[1758592592794,0.73602531,4172.9,4172.6,0.004]
[1758592592997,0.5132815,4172.8,4172.6,0.004]
[1758592593172,0.2493,4173.0,4172.6,0.004]
[1758592593363,0.73599441,4172.9,4172.6,0.004]
[1758592593692,0.51325579,4172.8,4172.7,2.39652982]
[1758592594879,0.001,4173.2,4172.7,1.47078149]
[1758592595079,0.001,4173.2,4173.0,2.39635753]
[1758592595286,0.001,4173.2,4173.1,2.39630011]
[1758592595485,0.51436416,4173.2,4172.8,0.4423]
[1758592595689,0.001,4173.2,4173.1,2.39630011]
[1758592595868,0.51436424,4173.2,4173.1,2.39630011]
[1758592596289,1.45215141,4173.2,4172.6,0.004]
[1758592596487,0.73615435,4173.1,4172.9,2.39641409]
[1758592596693,0.51336424,4173.0,4172.9,2.39641409]
[1758592596970,0.76266424,4173.0,4172.9,2.51561409]
[1758592597180,0.76266424,4173.0,4172.9,0.1192]
[1758592597678,1.45115122,4173.0,4172.9,0.1192]
[1758592597873,5.51515122,4173.0,4172.9,0.1192]
[1758592599294,5.04945122,4173.0,4172.9,0.1192]
[1758592603019,4.79815122,4173.0,4172.9,2.51561496]
[1758592603184,0.73615122,4173.0,4172.9,3.46375224]
[1758592603510,0.51336424,4173.0,4172.9,3.58205224]
[1758592604214,0.51336424,4173.0,4172.9,3.46375224]
[1758592605396,0.51336424,4173.0,4172.9,3.02145224]
[1758592605809,0.51336424,4173.0,4172.9,0.62503728]
[1758592605810,0.73627781,4173.0,4172.9,0.62503728]
[1758592605974,0.73627781,4173.0,4172.9,2.51561496]
[1758592606823,1.44457781,4173.0,4172.9,0.1192]
[1758592609115,5.50657781,4173.0,4172.9,0.1192]
[1758592613084,4.79827781,4173.0,4172.9,2.51561496]
[1758592613285,4.79827781,4173.0,4172.9,0.1192]
[1758592613795,5.04477781,4173.0,4172.9,0.1192]
[1758592614213,5.50657781,4173.0,4172.9,0.1192]
[1758592615387,5.04477781,4173.0,4172.9,0.1192]
[1758592615582,4.79827781,4173.0,4172.9,2.51561496]
[1758592615800,11.85827781,4173.0,4172.9,2.51561496]
[1758592616187,7.79627781,4173.0,4172.9,2.51561496]
[1758592618317,7.79627781,4173.0,4172.9,0.1192]
[1758592619688,12.56557781,4173.0,4172.9,0.1192]
[1758592619892,13.20723166,4173.0,4172.9,0.1192]
[1758592620330,14.85322773,4173.0,4172.9,0.1192]
[1758592620490,16.74177825,4173.0,4172.9,0.1192]
[1758592621125,25.98887493,4173.0,4172.9,0.1192]
[1758592621330,25.13333647,4173.0,4172.9,0.1192]
[1758592621511,16.41841,4173.0,4172.9,0.1192]
[1758592622021,19.67130092,4173.0,4172.9,0.1192]
[1758592624147,28.99085914,4173.0,4172.9,0.1192]
[1758592624328,28.13432575,4173.0,4172.9,0.1192]
[1758592625588,28.13442921,4173.0,4172.9,0.1192]
[1758592626022,21.81487099,4173.0,4172.9,0.1192]
[1758592626697,21.93407099,4173.0,4172.9,0.1192]
[1758592627242,3.0,4172.9,4172.6,0.004]
[1758592627442,5.43956272,4172.8,4172.6,0.004]
[1758592627595,1.37856272,4172.7,4172.6,0.004]
[1758592627795,1.37856272,4172.7,4172.6,0.1232]
[1758592628021,1.44468127,4172.7,4172.6,0.1232]
[1758592628322,0.73638127,4172.7,4172.6,0.1232]
[1758592628762,1.37849327,4172.7,4172.6,0.1232]
[1758592628922,4.79738127,4172.7,4172.6,0.1232]
[1758592629257,5.43941434,4172.7,4172.6,0.1232]
[1758592629458,4.57436424,4172.7,4172.6,0.1232]
[1758592629658,5.21643222,4172.7,4172.6,0.1232]
[1758592630162,5.43939344,4172.7,4172.6,0.1232]
[1758592631122,5.21643222,4172.7,4172.6,0.1232]
[1758592632061,5.43936233,4172.7,4172.6,0.1232]
[1758592633743,5.68586233,4172.7,4172.6,0.1232]
[1758592633950,6.14766233,4172.7,4172.6,0.1232]
[1758592634273,9.92030016,4172.7,4172.6,0.1232]
[1758592634760,7.06197034,4172.7,4172.6,0.1232]
[1758592634967,7.52377034,4172.7,4172.6,0.1232]
[1758592635177,5.43918919,4172.7,4172.6,0.1232]
[1758592636252,4.79729435,4172.7,4172.6,0.1232]
[1758592636464,5.43943543,4172.7,4172.6,0.1232]
[1758592636658,12.49943543,4172.7,4172.6,0.1232]
[1758592636868,8.43843543,4172.7,4172.6,0.1232]
[1758592637158,12.49943543,4172.7,4172.6,0.1232]
[1758592637731,12.54689435,4172.7,4172.6,0.1232]
[1758592637944,14.46654326,4172.7,4172.6,0.1232]
[1758592639982,12.54689435,4172.7,4172.6,0.1232]
[1758592640279,7.79629435,4172.7,4172.6,0.1232]
[1758592640483,11.85729435,4172.7,4172.6,0.1232]
[1758592641280,11.85829435,4172.7,4172.6,0.1232]
[1758592641473,12.50059243,4172.7,4172.6,0.1232]
[1758592642983,11.85829435,4172.7,4172.6,0.1232]
[1758592643181,12.09249435,4172.7,4172.6,0.1232]
[1758592643385,14.44036981,4172.7,4172.6,0.1232]
[1758592643573,17.82698506,4172.7,4172.6,0.1232]
[1758592644081,2.39675958,4172.3,4172.2,0.004]
[1758592644244,16.71411152,4172.3,4172.2,0.004]
[1758592644449,19.78509581,4172.3,4172.2,0.004]
[1758592644751,23.67318141,4172.3,4172.2,0.004]
[1758592645270,2.95933539,4173.7,4172.2,3.06640319]
[1758592645443,0.001,4173.7,4173.2,0.792]
[1758592645650,0.001,4173.7,4173.6,6.18801303]
[1758592645843,0.001,4173.7,4173.6,7.20249558]
[1758592646044,0.001,4174.1,4173.7,4.20243817]
[1758592646245,0.001,4174.1,4173.7,3.74755562]
[1758592647356,2.073,4175.1,4174.2,0.792]
[1758592647357,0.001,4175.1,4174.2,0.792]
[1758592647558,0.001,4175.1,4173.9,5.39584082]
[1758592647559,0.085,4174.7,4174.6,3.18743908]
[1758592647963,0.085,4174.7,4174.6,3.74703908]
[1758592649382,0.001,4174.7,4174.6,3.74703908]
[1758592649545,0.001,4174.7,4174.6,6.77099347]
[1758592649751,0.001,4174.7,4174.6,6.74703908]
[1758592650448,0.001,4174.7,4174.6,2.39543908]
[1758592651080,2.073,4174.7,4174.6,2.39543908]
[1758592653156,6.218,4174.7,4174.6,2.39543908]
[1758592653986,6.218,4174.7,4174.6,2.51463908]
[1758592654689,6.218,4174.7,4174.6,0.1192]
[1758592655004,6.9076,4174.7,4174.6,0.1192]
[1758592655167,7.59836,4174.7,4174.6,0.1192]
[1758592657549,4.8346,4174.7,4174.6,0.1192]
[1758592657750,6.9056,4174.7,4174.6,0.1192]
[1758592659294,9.3009817,4174.7,4174.6,0.1192]
[1758592660812,6.9056,4174.7,4172.6,2.40056112]
[1758592661014,2.395834,4174.0,4172.6,0.004]
[1758592661315,2.39589851,4173.8,4172.9,2.39641082]
[1758592661611,3.08556839,4173.7,4172.9,2.39641082]
[1758592661991,3.08556839,4173.7,4173.6,0.1192]
[1758592662188,7.7496,4173.7,4173.6,0.1192]
[1758592662627,7.2942,4173.7,4173.6,0.1192]
[1758592662913,13.27,4173.7,4173.6,0.1192]
[1758592664130,13.5042,4173.7,4173.6,0.1192]
[1758592664297,16.35555562,4173.7,4173.6,0.1192]
[1758592664497,13.9596,4173.7,4173.6,0.1192]
[1758592665495,16.35555562,4173.7,4173.6,0.1192]
[1758592666395,13.4992,4173.7,4173.6,0.1192]
[1758592667597,13.265,4173.7,4173.6,0.1192]
[1758592668090,13.263,4173.7,4173.6,0.1192]
[1758592668703,13.4912,4173.7,4173.6,0.1192]
[1758592669116,7.06,4173.7,4173.6,0.1192]
[1758592669316,13.263,4173.7,4173.6,0.1192]
[1758592670911,7.2882,4173.7,4173.6,0.1192]
[1758592671115,13.4892,4173.7,4173.6,0.1192]
[1758592672100,17.86116724,4173.7,4173.6,0.1192]
[1758592672616,15.46521162,4173.7,4173.6,0.1192]
[1758592672811,13.257,4173.7,4173.6,0.1192]
[1758592673011,13.256,4173.7,4173.6,0.1192]
[1758592673222,7.06,4173.7,4173.6,0.1192]
[1758592673423,13.256,4173.7,4173.6,0.1192]
[1758592673822,15.65195562,4173.7,4173.6,0.1192]
[1758592674030,15.88015562,4173.7,4173.6,0.1192]
[1758592674431,13.4842,4173.7,4173.6,0.1192]
[1758592674947,13.256,4173.7,4173.6,0.1192]
[1758592676132,15.65195562,4173.7,4173.6,0.1192]
[1758592676334,15.572421,4173.7,4172.4,5.39669772]
[1758592676639,16.10295562,4173.7,4173.6,0.004]
[1758592676808,13.57895562,4173.7,4173.6,0.004]
[1758592677011,15.65095562,4173.7,4173.6,0.004]
[1758592677203,16.33015562,4173.7,4173.6,0.004]
[1758592677535,10.13515562,4173.7,4173.6,0.004]
[1758592677835,15.87915562,4173.7,4173.6,0.004]
[1758592678022,16.33015562,4173.7,4173.6,0.004]
[1758592681764,11.183,4173.7,4173.6,0.004]
[1758592682064,13.252,4173.7,4173.6,0.004]
[1758592684825,7.06,4173.7,4173.6,0.004]
[1758592685025,13.249,4173.7,4173.6,0.004]
[1758592686429,13.38197727,4173.7,4173.6,0.1232]
[1758592686827,13.60527277,4173.7,4173.6,0.1232]
[1758592687223,14.11974574,4173.7,4173.6,0.1232]
[1758592687426,14.34794574,4173.7,4173.6,0.1232]
[1758592688567,14.11974574,4173.7,4173.6,0.1232]
[1758592688969,16.51570136,4173.7,4173.6,0.1232]
[1758592689890,16.74390136,4173.7,4173.6,0.1232]
[1758592690189,19.17274975,4173.7,4173.6,0.1232]
[1758592690938,7.93174574,4173.7,4173.6,0.1232]
[1758592691243,13.60027277,4173.7,4173.6,0.7072]
[1758592691680,13.60027277,4173.7,4173.6,0.5899]
[1758592692675,13.60027277,4173.7,4173.6,0.1232]
[1758592692877,13.60078995,4173.7,4173.6,0.1232]
[1758592693573,13.60078455,4173.7,4173.6,0.1232]
[1758592693873,13.46661872,4173.7,4173.6,0.1232]
[1758592694774,11.39361872,4173.7,4173.6,2.98591303]
[1758592694976,13.46561872,4173.7,4173.6,0.1232]
[1758592697100,11.38961872,4173.7,4173.6,0.1232]
[1758592697304,13.46161872,4173.7,4173.6,0.1232]
[1758592697777,13.46061872,4173.7,4173.6,0.1232]
[1758592698582,17.06574838,4173.7,4173.6,0.1232]
[1758592698746,19.14603899,4173.7,4173.6,0.1232]
[1758592700394,19.78477951,4173.7,4173.6,0.1232]
[1758592701251,2.39618527,4173.3,4173.1,0.004]
[1758592701453,4.97482925,4173.2,4173.1,0.004]
[1758592701762,8.06517194,4173.2,4173.1,0.004]
[1758592702084,8.06517194,4173.2,4173.1,0.1232]
[1758592703065,16.67297111,4173.2,4173.1,0.1232]
[1758592703556,17.31667614,4173.2,4173.1,0.1232]
[1758592704401,16.67297111,4173.2,4173.1,0.1232]
[1758592704777,16.67253864,4173.2,4173.1,0.1232]
[1758592705198,16.67215237,4173.2,4173.1,0.1232]
[1758592705903,13.58180968,4173.2,4173.1,0.1232]
[1758592706103,16.67215237,4173.2,4173.1,0.1232]
[1758592706970,16.66815237,4173.2,4173.1,0.1232]
[1758592707299,18.74015237,4173.2,4173.1,0.1232]
[1758592707858,19.38345434,4173.2,4173.1,0.1232]
[1758592708061,18.74015237,4173.2,4173.1,0.1232]
[1758592708270,19.13382795,4173.2,4173.1,0.1232]
[1758592708595,19.98996417,4173.2,4173.1,0.1232]
[1758592710220,19.13382795,4173.2,4173.1,0.1232]
[1758592710561,25.45689589,4173.2,4173.1,0.1232]
[1758592712576,25.45620297,4173.2,4173.1,0.1232]
[1758592712780,25.45620297,4173.2,4173.1,0.004]
[1758592713205,19.13313503,4173.2,4173.1,0.004]
[1758592713913,19.12713503,4173.2,4173.1,0.004]
[1758592714107,18.03835945,4173.2,4173.1,0.004]
[1758592714346,16.36736028,4173.2,4173.1,0.004]
[1758592715114,17.06146028,4173.2,4173.1,0.004]
[1758592715487,10.89846028,4173.2,4173.1,0.004]
[1758592715812,17.06446028,4173.2,4173.1,0.004]
[1758592716025,19.50729788,4173.2,4173.1,0.004]
[1758592716184,8.71954033,4172.8,4172.7,0.004]
[1758592716519,20.61665792,4172.8,4172.7,0.004]
[1758592716676,21.31075792,4172.8,4172.7,0.004]
[1758592716883,23.75359552,4172.8,4172.7,0.004]
[1758592717083,23.84966427,4172.8,4172.7,0.004]
[1758592718592,17.52659633,4172.8,4172.7,0.004]
[1758592718824,20.52659633,4172.8,4172.7,0.004]
[1758592719228,21.3816483,4172.8,4172.7,0.004]
[1758592720135,21.3816483,4172.8,4172.6,0.004]
[1758592720136,5.39652982,4172.7,4172.6,0.004]
[1758592720327,17.25633156,4172.7,4172.6,0.004]
[1758592720694,17.95043156,4172.7,4172.6,0.004]
[1758592721093,17.95043156,4172.7,4172.2,0.004]
[1758592721094,2.39675958,4172.3,4172.2,0.004]
[1758592721294,12.43107717,4172.3,4172.2,0.004]
[1758592721606,14.90795285,4172.3,4172.2,0.004]
[1758592721930,22.69516873,4172.3,4172.2,0.004]
[1758592722432,22.33050987,4172.3,4172.2,0.004]
[1758592723097,23.6147142,4172.3,4172.2,0.004]
[1758592723298,22.33050987,4172.3,4172.2,0.004]
[1758592724309,28.80850987,4172.3,4172.2,0.004]
[1758592724509,16.16750987,4172.3,4172.2,0.004]
[1758592724729,28.80750987,4172.3,4172.2,0.004]
[1758592725033,16.16750987,4172.3,4172.2,0.004]
[1758592725212,28.80650987,4172.3,4172.2,0.004]
[1758592725529,28.80650987,4172.3,4171.7,0.1232]
[1758592725735,2.39721922,4171.5,4171.4,0.4276]
[1758592725936,16.09612346,4171.5,4171.4,0.5449]
[1758592726115,16.09612346,4171.5,4171.4,0.6641]
[1758592726646,10.05854308,4171.5,4171.4,0.6641]
[1758592727001,16.21754308,4171.5,4171.4,0.6641]
[1758592727230,15.99418749,4171.5,4171.4,0.6641]
[1758592727599,9.83518749,4171.5,4171.4,0.6641]
[1758592728352,16.21547881,4171.5,4171.4,0.6641]
[1758592728702,10.05747881,4171.5,4171.4,0.6641]
[1758592728902,16.21447881,4171.5,4171.4,0.6641]
[1758592729369,14.14147881,4171.5,4171.4,0.6641]
[1758592729513,16.21447881,4171.5,4171.4,0.6641]
[1758592730041,7.31554865,4171.5,4171.4,0.6641]
[1758592730243,15.86976787,4171.5,4171.4,0.6641]
[1758592730440,15.86876787,4171.5,4171.4,0.6641]
[1758592732644,7.31554865,4171.5,4171.4,0.6641]
[1758592732946,12.9556,4171.5,4171.4,0.6641]
[1758592733534,15.35281922,4171.5,4171.4,0.6641]
[1758592733734,15.35281922,4171.5,4171.4,0.1192]
[1758592734047,15.86547046,4171.5,4171.4,0.1192]
[1758592734228,9.71147046,4171.5,4171.4,0.5898]
[1758592734556,15.86447046,4171.5,4171.4,0.5898]
[1758592735921,13.46725124,4171.5,4171.4,0.5898]
[1758592736125,13.46725124,4171.5,4171.4,0.7071]
[1758592736126,12.9546,4171.5,4171.4,0.7071]
[1758592736926,6.8016,4171.5,4171.4,0.7071]
[1758592737226,12.9526,4171.5,4171.4,0.7071]
[1758592738058,6.8016,4171.5,4171.4,0.7071]
[1758592738241,12.9526,4171.5,4171.4,0.7071]
[1758592738436,15.86308256,4171.5,4171.4,0.7071]
[1758592738654,15.86308256,4171.5,4171.4,0.1192]
[1758592741250,16.08588648,4171.5,4171.4,0.1192]
[1758592741450,16.75018648,4171.5,4171.4,0.1192]
[1758592742979,16.31598648,4171.5,4171.4,0.1192]
[1758592743269,16.4497153,4171.5,4171.4,0.1192]
[1758592744078,7.53766726,4171.5,4171.4,0.5879]
[1758592744275,13.46386334,4171.5,4171.4,0.5879]
[1758592744502,13.46386334,4171.5,4171.4,0.4706]
[1758592744503,13.68685531,4171.5,4171.4,0.4706]
[1758592744710,13.68685531,4171.5,4171.3,0.004]
[1758592744910,0.51326334,4171.4,4171.3,0.004]
[1758592746164,0.73644917,4171.4,4171.3,0.004]
[1758592746580,0.96654917,4171.4,4171.3,0.004]
[1758592746814,3.36382586,4171.4,4171.3,0.004]
[1758592747013,3.13372586,4171.4,4171.3,0.004]
[1758592747509,3.90787838,4171.4,4171.3,0.004]
[1758592749333,10.70947838,4171.4,4171.3,0.004]
[1758592749534,10.2993716,4171.4,4171.3,0.004]
[1758592750433,10.0692716,4171.4,4171.3,0.004]
[1758592752650,10.2993716,4171.4,4171.3,0.004]
[1758592753414,15.10737936,4171.4,4171.3,0.004]
[1758592753814,15.10737936,4171.4,4171.1,0.02]
[1758592753815,2.39739163,4171.2,4171.1,0.02]
[1758592754102,2.39765476,4170.8,4170.2,0.1192]
[1758592754432,11.0025948,4170.6,4170.2,0.1192]
[1758592754735,15.64220517,4170.6,4170.2,0.1192]
[1758592754902,16.30650517,4170.6,4170.2,0.1192]
[1758592756247,17.58944043,4170.6,4170.2,0.1192]
[1758592756411,16.30650517,4170.6,4170.2,0.1192]
[1758592756609,8.98621589,4170.6,4170.2,0.1192]
[1758592756843,3.26813144,4170.6,4169.8,0.4354]
[1758592757154,6.88544917,4170.6,4170.1,0.5727]
[1758592757307,9.2831857,4170.6,4170.1,0.5727]
[1758592758653,9.2831857,4170.6,4170.1,0.02]
[1758592759613,10.05827056,4170.6,4170.1,0.02]
[1758592762014,7.66053403,4170.6,4170.1,0.02]
[1758592762214,9.2831857,4170.6,4170.1,0.02]
[1758592762850,9.5106857,4170.6,4170.1,0.02]
[1758592763046,10.15217856,4170.6,4170.1,0.02]
[1758592763277,12.05351861,4170.6,4170.1,0.02]
[1758592763479,13.1468413,4170.6,4170.1,0.02]
[1758592763792,15.2198413,4170.6,4170.1,0.02]
[1758592764191,15.7725413,4170.6,4170.1,0.02]
[1758592764348,16.62688813,4170.6,4170.1,0.02]
[1758592764679,15.7725413,4170.6,4170.1,0.02]
[1758592765873,8.9492413,4170.6,4170.1,0.02]
[1758592766079,21.37337965,4170.6,4170.1,0.02]
[1758592766275,21.37237965,4170.6,4170.1,0.02]
[1758592766456,21.81617965,4170.6,4170.1,0.02]
[1758592767061,15.66617965,4170.6,4170.4,0.1192]
[1758592767249,21.81617965,4170.6,4170.4,0.1192]
[1758592767450,24.25901725,4170.6,4170.4,0.1192]
[1758592768374,18.10901725,4170.6,4170.4,0.1192]
[1758592768577,21.51371725,4170.6,4170.4,0.1192]
[1758592768789,22.73352813,4170.6,4170.4,0.1192]
[1758592769178,22.96102813,4170.6,4170.4,0.1192]
[1758592769544,23.81521725,4170.6,4170.4,0.1192]
[1758592770474,22.96102813,4170.6,4170.4,0.1192]
[1758592770782,23.81521725,4170.6,4170.4,0.1192]
[1758592772494,22.96102813,4170.6,4170.4,0.1192]
[1758592772692,16.81102813,4170.6,4170.4,0.1192]
[1758592772994,23.81555144,4170.6,4170.4,0.1192]
[1758592773894,23.45453589,4170.6,4170.4,0.1192]
[1758592774068,10.11676671,4170.6,4170.4,0.1192]
[1758592774273,9.26257759,4170.6,4170.4,0.1192]
[1758592774591,6.81973999,4170.6,4170.5,0.4394]
[1758592774764,12.97073999,4170.6,4170.5,0.004]
[1758592775984,10.89673999,4170.6,4170.5,0.004]
[1758592776196,4.42200346,4170.6,4170.5,0.004]
[1758592776359,8.49900346,4170.6,4170.5,0.4394]
[1758592776565,10.57300346,4170.6,4170.5,0.4394]
[1758592776974,11.75092911,4170.6,4170.5,0.004]
[1758592777179,15.24601937,4170.6,4170.5,0.004]
[1758592778214,13.70147196,4170.6,4170.5,0.004]
[1758592778394,10.82392911,4170.6,4170.5,0.4394]
[1758592778594,10.82392911,4170.6,4170.5,0.004]
[1758592780017,7.57200346,4170.6,4170.5,0.5567]
[1758592780303,8.21427293,4170.6,4170.5,0.5567]
[1758592780502,8.21427293,4170.6,4170.5,0.4394]
[1758592780702,7.57200346,4170.6,4170.5,0.4394]
[1758592781298,7.57200346,4170.6,4170.5,0.004]
[1758592782705,7.57200346,4170.6,4170.5,0.4394]
[1758592783013,14.37360346,4170.6,4170.5,0.5567]
[1758592783315,9.07779258,4170.6,4170.5,0.4394]
[1758592783604,14.37360346,4170.6,4170.5,0.004]
[1758592784504,8.22360346,4170.6,4170.5,0.004]
[1758592784728,14.37360346,4170.6,4170.5,0.004]
[1758592784875,14.37360346,4170.6,4170.5,0.4394]
[1758592785329,14.37360346,4170.6,4170.5,0.004]
[1758592785620,15.22779258,4170.6,4170.5,0.004]
[1758592786323,14.37360346,4170.6,4170.5,0.004]
[1758592788128,14.37360346,4170.6,4170.5,0.5529]
[1758592788129,14.24008336,4170.6,4170.5,0.5529]
[1758592788710,13.68738336,4170.6,4170.5,0.5529]
[1758592788940,7.53738336,4170.6,4170.5,2.95069402]
[1758592789088,13.68738336,4170.6,4170.5,0.5529]
[1758592790014,13.68738336,4170.6,4170.5,2.95069402]
[1758592790924,6.88578336,4170.6,4170.5,2.95069402]
[1758592791698,4.81178336,4170.6,4170.5,0.5529]
[1758592793085,4.81178336,4170.6,4170.5,0.004]
[1758592793704,5.46708336,4170.6,4170.5,0.004]
[1758592794103,5.03838336,4170.6,4170.5,0.004]
[1758592795624,5.46708336,4170.6,4170.5,0.004]
[1758592796226,7.86481989,4170.6,4170.5,0.004]
[1758592798054,5.46708336,4170.6,4170.5,0.1232]
[1758592798257,8.50751219,4170.6,4170.5,0.1232]
[1758592799455,10.50631125,4170.6,4170.5,0.004]
[1758592799659,9.99739975,4170.6,4170.5,0.004]
[1758592800551,2.86836322,4170.6,4170.5,0.004]
[1758592800756,5.06776416,4170.6,4170.5,0.004]
[1758592801066,9.53850069,4170.6,4170.5,0.004]
[1758592801226,0.99276416,4170.6,4170.5,0.004]
[1758592801755,7.52638918,4170.6,4170.5,0.5529]
[1758592802257,1.37838918,4170.6,4170.5,2.95069402]
[1758592802421,4.81078336,4170.6,4170.5,2.95069402]
[1758592803259,0.73578336,4170.6,4170.5,2.95069402]
[1758592803457,0.001,4170.9,4170.8,2.39762155]
[1758592803662,0.51524104,4170.9,4170.8,3.18962155]
[1758592803824,0.001,4170.9,4170.8,6.73852155]
[1758592805460,0.001,4172.6,4170.9,3.792]
[1758592805664,0.001,4172.6,4171.3,0.792]
[1758592805828,0.001,4172.6,4172.1,6.18887447]
[1758592806251,1.474,4172.5,4172.1,5.39687447]
[1758592806449,1.474,4172.5,4172.1,5.82847447]
[1758592806649,4.074,4172.4,4172.1,6.73777447]
[1758592807036,0.001,4172.6,4172.1,6.73777447]
[1758592807470,0.001,4172.6,4172.1,6.30617447]
[1758592807625,0.001,4172.6,4172.1,6.73777447]
[1758592808851,0.001,4172.6,4172.1,6.18887447]
[1758592809036,0.001,4172.6,4171.6,0.5489]
[1758592809037,0.2266,4172.4,4171.6,0.5489]
[1758592809237,0.2266,4172.4,4171.8,0.792]
[1758592809441,3.83,4172.5,4172.1,0.1192]
[1758592809643,4.0566,4172.5,4172.1,0.1192]
[1758592810051,3.83,4172.5,4172.1,2.51607447]
[1758592810251,4.073,4172.4,4172.1,2.51607447]
[1758592810467,4.073,4172.4,4172.1,0.1192]
[1758592810653,0.2276,4172.2,4172.1,0.1192]
[1758592811968,4.3006,4172.2,4172.1,0.1192]
[1758592812272,4.074,4172.2,4172.1,0.1192]
[1758592813267,0.001,4172.2,4172.1,0.1192]
[1758592813441,0.001,4172.2,4172.1,3.06497447]
[1758592813870,0.001,4172.2,4172.1,3.88094321]
[1758592814056,0.001,4172.2,4172.1,3.85697447]
[1758592814558,0.001,4172.2,4172.1,0.1192]
[1758592818938,0.001,4172.2,4172.1,2.51607447]
[1758592819137,0.001,4172.2,4172.1,3.90004321]
[1758592819538,0.001,4172.2,4172.1,6.87607447]
[1758592820986,1e-08,4172.7,4172.6,6.18858725]
[1758592821290,1e-08,4172.7,4172.6,10.37978725]
[1758592821613,1e-08,4172.7,4172.6,10.94778725]
[1758592822392,1e-08,4172.7,4172.6,13.01978725]
[1758592824836,1e-08,4172.7,4172.6,2.51578725]
[1758592825200,1e-08,4172.7,4172.6,0.1192]
[1758592825529,0.66890001,4172.7,4172.6,0.1192]
[1758592826100,1e-08,4172.7,4172.6,2.51578725]
[1758592826430,0.66890001,4172.7,4172.6,0.1192]
[1758592827011,1e-08,4172.7,4172.6,0.1192]
[1758592827338,1e-08,4172.7,4172.6,3.30778725]
[1758592828010,1e-08,4172.7,4172.6,3.33175312]
[1758592828708,1e-08,4172.7,4172.6,3.30778725]
[1758592828902,0.66890001,4172.7,4172.6,0.1192]
[1758592829735,1.18066376,4172.7,4172.6,0.1192]
[1758592832340,1.4031701,4172.7,4172.6,0.1192]
[1758592832833,0.7342701,4172.7,4172.6,2.51578725]
[1758592833039,0.7342701,4172.7,4172.6,0.1192]
[1758592833832,0.7342701,4172.7,4172.6,2.51578725]
[1758592834031,0.51176376,4172.7,4172.6,2.51578725]
[1758592836115,0.51176376,4172.7,4172.6,0.1192]
[1758592836320,1.18066376,4172.7,4172.6,2.51578725]
[1758592836714,0.73936376,4172.7,4172.6,2.51578725]
[1758592836915,1.18066376,4172.7,4172.6,0.1192]
[1758592837451,1.40340896,4172.7,4172.6,0.1192]
[1758592837662,0.51176376,4172.7,4172.6,0.1192]
[1758592837808,0.51176376,4172.7,4172.6,2.51578725]
[1758592838014,1.40341729,4172.7,4172.6,0.1192]
[1758592838320,1.6080196,4172.7,4172.6,0.1192]
[1758592838552,2.25061237,4172.7,4172.6,0.1192]
[1758592839975,4.13817349,4172.7,4172.6,0.1192]
[1758592840147,4.99236261,4172.7,4172.6,0.1192]
[1758592840336,4.13817349,4172.7,4172.6,0.1192]
[1758592841076,4.99347622,4172.7,4172.6,0.1192]
[1758592841634,9.06347622,4172.7,4172.6,0.1192]
[1758592843951,6.6669464,4172.7,4172.6,0.1192]
[1758592844150,5.81164367,4172.7,4172.6,0.1192]
[1758592844346,1.53704136,4172.7,4172.6,0.1192]
[1758592844649,4.80450424,4172.7,4172.6,0.1192]
[1758592844853,4.80450424,4172.7,4172.6,2.51578725]
[1758592844854,4.58176376,4172.7,4172.6,2.51578725]
[1758592845182,4.58176376,4172.7,4172.6,0.1192]
[1758592845789,4.58176376,4172.7,4172.6,2.51578725]
[1758592845961,0.51176376,4172.7,4172.6,2.51578725]
[1758592846168,4.58176376,4172.7,4172.6,0.1192]
[1758592847208,4.07000001,4172.7,4172.6,0.1192]
[1758592847558,4.07000001,4172.7,4172.6,2.51578725]
[1758592848315,1e-08,4172.7,4172.6,2.51578725]
[1758592848470,1e-08,4172.7,4172.6,2.97985312]
[1758592848811,1e-08,4172.7,4172.3,0.792]
[1758592849105,1e-08,4172.7,4172.6,2.39658725]
[1758592850560,1e-08,4172.7,4172.6,2.95588725]
[1758592850756,1e-08,4172.7,4172.6,3.77185312]
[1758592851029,1e-08,4172.7,4172.6,3.74788725]
[1758592854917,1e-08,4172.7,4172.6,6.74788725]
[1758592855219,1e-08,4172.7,4172.6,10.81788725]
[1758592855417,1e-08,4172.7,4172.6,12.88988725]
[1758592856265,1e-08,4172.7,4172.6,12.89388725]
[1758592858367,1e-08,4172.7,4172.6,13.01308725]
[1758592858911,0.001,4173.1,4173.0,3.18835753]
[1758592859132,0.001,4173.1,4173.0,10.4005211]
[1758592859270,0.001,4174.1,4174.0,3.18778342]
[1758592859624,0.001,4174.1,4174.0,10.25678342]
[1758592859765,0.001,4174.1,4174.0,10.81608342]
[1758592859966,0.001,4174.1,4174.0,10.93528342]
[1758592861480,0.001,4174.8,4174.6,0.792]
[1758592861798,0.001,4174.8,4174.6,12.35239347]
[1758592862108,0.001,4174.8,4174.6,13.00693908]
[1758592863701,0.001,4174.8,4174.6,13.49254738]
[1758592865876,0.001,4174.8,4174.6,13.37524738]
[1758592866203,0.001,4174.8,4174.6,13.49254738]
[1758592867498,0.001,4174.8,4174.6,20.49254738]
[1758592869191,1e-08,4175.0,4174.9,3.18726695]
[1758592869386,1e-08,4175.0,4174.9,10.27821961]
[1758592869600,0.7095,4176.3,4176.1,0.792]
[1758592869816,0.4611,4176.7,4176.3,0.792]
[1758592869987,0.2484,4176.7,4176.5,0.792]
[1758592870188,0.001,4177.2,4176.6,4.067]